bitfinex-derivatives/quotes_BTCF0:USTF0_20250822
["timestamp","ask_amount","ask_price","bid_price","bid_amount"]
[1755867681727,0.10238378,112580.0,112570.0,0.20781]
[1755867681928,0.10258378,112580.0,112570.0,0.20781]
[1755867682122,0.14294996,112580.0,112570.0,0.72066504]
[1755867682313,0.09666996,112580.0,112570.0,0.72066504]
[1755867682721,0.17189996,112580.0,112570.0,0.20781]
[1755867683023,0.947245,112580.0,112570.0,0.20781]
[1755867683422,1.793525,112580.0,112570.0,0.20781]
[1755867683617,1.89071563,112580.0,112560.0,0.07331139]
[1755867683814,0.60057504,112570.0,112560.0,0.15164139]
[1755867684013,0.60077504,112570.0,112560.0,0.15164139]
[1755867684214,0.7035751,112570.0,112560.0,0.15164139]
[1755867684624,0.7035751,112570.0,112560.0,0.11825139]
[1755867684820,0.19072006,112570.0,112560.0,0.11825139]
[1755867685022,0.7035751,112570.0,112560.0,0.15703139]
[1755867685230,0.7035751,112570.0,112560.0,0.19042139]
[1755867685521,0.7035751,112570.0,112560.0,0.22731139]
[1755867685723,0.7035751,112570.0,112560.0,0.15514139]
[1755867685724,0.9535751,112570.0,112560.0,0.15514139]
[1755867685923,0.9535751,112570.0,112560.0,0.22731139]
[1755867686423,0.9565751,112570.0,112560.0,0.22731139]
[1755867686621,0.9565751,112570.0,112560.0,0.05467]
[1755867686812,0.9545751,112570.0,112560.0,0.05467]
[1755867687211,0.9137051,112570.0,112550.0,0.05381]
[1755867687413,0.08772,112560.0,112550.0,0.17092]
[1755867687613,0.60077504,112560.0,112550.0,0.20781]
[1755867688322,0.85077504,112560.0,112550.0,0.09875]
[1755867688822,0.33792,112560.0,112550.0,0.17092]
[1755867689122,0.85077504,112560.0,112550.0,0.10848]
[1755867689426,0.85077504,112560.0,112550.0,0.13214]
[1755867689620,0.60077504,112560.0,112550.0,0.13214]
[1755867689819,0.60077504,112560.0,112550.0,0.13314]
[1755867690018,0.43094994,112560.0,112550.0,0.05567]
[1755867690722,0.94380498,112560.0,112550.0,0.05567]
[1755867691322,0.94460498,112560.0,112520.0,0.02012687]
[1755867691522,0.08672,112540.0,112530.0,0.16903]
[1755867691725,0.08692,112540.0,112530.0,0.20781]
[1755867692030,0.4393923,112540.0,112530.0,0.20781]
[1755867692627,0.95224734,112540.0,112530.0,0.20781]
[1755867692822,0.4393923,112540.0,112530.0,0.20781]
[1755867693025,0.95224734,112540.0,112530.0,0.20781]
[1755867693223,0.95224734,112540.0,112530.0,0.16903]
[1755867693730,0.95224734,112540.0,112530.0,0.05767]
[1755867693930,0.95224734,112540.0,112530.0,0.003]
[1755867694233,1.80168734,112540.0,112530.0,0.003]
[1755867694426,1.88945747,112540.0,112530.0,0.003]
[1755867695024,1.88949747,112540.0,112530.0,0.003]
[1755867695231,1.88949747,112540.0,112530.0,0.005]
[1755867695730,1.88925747,112540.0,112530.0,0.005]
[1755867695930,1.88925747,112540.0,112530.0,0.002]
[1755867695931,1.95509069,112540.0,112530.0,0.002]
[1755867696330,0.03867,112530.0,112520.0,0.05467]
[1755867696533,0.08472,112520.0,112510.0,0.10848]
[1755867696735,0.08472,112520.0,112510.0,0.07509]
[1755867696736,1.53462517,112520.0,112510.0,0.07509]
[1755867696924,0.78436427,112520.0,112510.0,0.07509]
[1755867697232,1.63348427,112520.0,112510.0,0.09875]
[1755867697428,1.63352427,112520.0,112510.0,0.09875]
[1755867698631,1.88352427,112520.0,112510.0,0.05467]
[1755867699236,1.88352427,112520.0,112510.0,0.05567]
[1755867699627,1.03436427,112520.0,112510.0,0.05767]
[1755867699830,1.88268427,112520.0,112510.0,0.05767]
[1755867700125,1.95356231,112520.0,112510.0,0.07809]
[1755867700325,1.95352231,112520.0,112510.0,0.10175]
[1755867700530,1.95352231,112520.0,112510.0,0.17392]
[1755867700726,0.50461714,112520.0,112510.0,0.17392]
[1755867700932,1.95328231,112520.0,112510.0,0.21081]
[1755867701938,1.95328231,112520.0,112510.0,0.07809]
[1755867702138,1.95412231,112520.0,112510.0,0.10175]
[1755867703336,1.10524231,112520.0,112510.0,0.07809]
[1755867703541,1.95456231,112520.0,112510.0,0.07809]
[1755867703731,1.35393714,112520.0,112510.0,0.10175]
[1755867703934,1.95456231,112520.0,112510.0,0.10175]
[1755867707642,1.10524231,112520.0,112510.0,0.10175]
[1755867707846,1.95296231,112520.0,112510.0,0.20153]
[1755867708543,1.10524231,112520.0,112510.0,0.20153]
[1755867708740,1.95332231,112520.0,112510.0,0.20153]
[1755867709143,1.95332231,112520.0,112510.0,0.16651]
[1755867709345,1.95332231,112520.0,112510.0,0.05767]
[1755867710540,1.95432231,112520.0,112510.0,0.001]
[1755867710840,0.03498,112500.0,112490.0,0.10299]
[1755867711045,1.52439517,112500.0,112490.0,0.07174]
[1755867711347,1.02992045,112500.0,112490.0,0.05018]
[1755867711544,1.87728045,112500.0,112490.0,0.05018]
[1755867711844,1.02992045,112500.0,112490.0,0.07459]
[1755867712040,1.02992045,112500.0,112490.0,0.09615]
[1755867712341,1.02992045,112500.0,112490.0,0.1274]
[1755867712643,1.87732045,112500.0,112490.0,0.19793]
[1755867713343,0.42929528,112500.0,112490.0,0.19793]
[1755867713640,1.27689528,112500.0,112490.0,0.19793]
[1755867713843,1.29399759,112500.0,112490.0,0.19793]
[1755867714244,1.89462276,112500.0,112490.0,0.19793]
[1755867714843,1.04702276,112500.0,112490.0,0.19793]
[1755867715047,1.89686276,112500.0,112490.0,0.19793]
[1755867715450,1.29627759,112500.0,112490.0,0.19793]
[1755867715644,1.89690276,112500.0,112490.0,0.19793]
[1755867716344,0.95917704,112500.0,112490.0,0.19793]
[1755867716545,1.80901704,112500.0,112490.0,0.19793]
[1755867717050,0.95917704,112500.0,112490.0,0.16291]
[1755867717346,1.80917704,112500.0,112490.0,0.19793]
[1755867718649,1.80917704,112500.0,112490.0,0.16291]
[1755867719050,1.80917704,112500.0,112490.0,0.19793]
[1755867719947,0.95917704,112500.0,112490.0,0.19793]
[1755867720151,0.93212231,112500.0,112490.0,0.44793]
[1755867720352,0.93212231,112500.0,112490.0,0.96070945]
[1755867720653,0.93212231,112500.0,112490.0,0.44793]
[1755867721039,0.08248231,112500.0,112490.0,0.44793]
[1755867721244,0.01730231,112500.0,112490.0,0.96150945]
[1755867722459,0.01730231,112500.0,112490.0,0.44793]
[1755867722460,0.06503231,112500.0,112490.0,0.44793]
[1755867722943,0.04096231,112500.0,112490.0,0.44793]
[1755867723143,0.06503231,112500.0,112490.0,0.44793]
[1755867723651,0.59526176,112500.0,112490.0,0.44793]
[1755867724054,0.7349901,112500.0,112490.0,0.44793]
[1755867724252,0.05841231,112500.0,112490.0,0.44793]
[1755867724453,0.08248231,112500.0,112490.0,0.44793]
[1755867725859,0.7349901,112500.0,112490.0,0.19793]
[1755867726049,0.17800767,112500.0,112490.0,0.19793]
[1755867726251,0.84142546,112500.0,112490.0,0.16291]
[1755867726945,0.83051546,112500.0,112490.0,0.19793]
[1755867727259,0.01730231,112500.0,112490.0,1.10043779]
[1755867727446,0.06503231,112500.0,112490.0,1.10043779]
[1755867727649,0.06503231,112500.0,112490.0,0.44793]
[1755867728961,0.66995779,112510.0,112500.0,0.19593]
[1755867729361,0.96168315,112510.0,112500.0,0.19593]
[1755867729652,0.11188315,112510.0,112500.0,0.19593]
[1755867729952,1.61407094,112510.0,112500.0,0.19593]
[1755867730556,1.64395213,112510.0,112500.0,0.19593]
[1755867731152,0.79427213,112510.0,112500.0,0.19593]
[1755867731347,0.89677119,112510.0,112500.0,0.44593]
[1755867731860,0.89777119,112510.0,112500.0,0.44593]
[1755867732059,0.89797119,112510.0,112500.0,0.44593]
[1755867732262,1.55047898,112510.0,112500.0,0.44593]
[1755867735059,1.90774999,112510.0,112500.0,0.07174]
[1755867735260,1.90774999,112510.0,112500.0,0.05018]
[1755867735456,1.2552422,112510.0,112500.0,0.05018]
[1755867735658,0.02836,112500.0,112490.0,0.09615]
[1755867735963,0.78076901,112500.0,112490.0,0.09615]
[1755867736265,1.62924901,112500.0,112490.0,0.19593]
[1755867736463,0.97674122,112500.0,112490.0,0.19593]
[1755867736665,1.62924901,112500.0,112490.0,0.19593]
[1755867736863,1.64731809,112500.0,112490.0,0.19593]
[1755867737161,0.9662503,112500.0,112490.0,0.19793]
[1755867737360,0.86658908,112500.0,112490.0,0.44793]
[1755867737764,0.01826908,112500.0,112490.0,0.44793]
[1755867738654,0.01826908,112500.0,112490.0,1.10043779]
[1755867738852,0.01826908,112500.0,112490.0,0.44793]
[1755867739055,0.01826908,112500.0,112490.0,1.10043779]
[1755867739357,0.01826908,112500.0,112490.0,0.44793]
[1755867743557,0.01826908,112500.0,112490.0,1.10043779]
[1755867746767,0.01826908,112500.0,112490.0,0.44793]
[1755867748970,1.88073998,112510.0,112490.0,0.44793]
[1755867749171,1.61309776,112510.0,112500.0,0.20388]
[1755867749464,0.97712997,112510.0,112500.0,0.20388]
[1755867749671,1.62963776,112510.0,112500.0,0.20388]
[1755867749970,0.95905266,112510.0,112500.0,0.20388]
[1755867750173,1.61156045,112510.0,112500.0,0.20388]
[1755867751068,0.76392045,112510.0,112500.0,0.20388]
[1755867751374,1.53006723,112510.0,112500.0,0.20388]
[1755867751764,0.95793266,112510.0,112500.0,0.20388]
[1755867752069,1.61044045,112510.0,112500.0,0.20388]
[1755867752271,1.61164045,112510.0,112500.0,0.20388]
[1755867752459,0.95913266,112510.0,112500.0,0.20388]
[1755867752664,1.61164045,112510.0,112500.0,0.20388]
[1755867753062,0.95913266,112510.0,112500.0,0.20388]
[1755867753264,1.61164045,112510.0,112500.0,0.20388]
[1755867753672,0.76512045,112510.0,112500.0,0.20388]
[1755867753971,1.54732723,112510.0,112500.0,0.20388]
[1755867754368,0.04877944,112510.0,112500.0,0.20388]
[1755867754565,0.03223944,112510.0,112500.0,1.10638779]
[1755867758771,0.04877944,112510.0,112500.0,0.20388]
[1755867758980,0.70128723,112510.0,112500.0,0.20388]
[1755867760269,0.04877944,112510.0,112500.0,0.20388]
[1755867760979,0.06685165,112510.0,112500.0,0.20388]
[1755867761479,0.72969944,112510.0,112500.0,0.20388]
[1755867761668,0.71935944,112510.0,112500.0,0.20388]
[1755867762178,0.71935944,112510.0,112500.0,0.1683]
[1755867762477,0.72969944,112510.0,112500.0,0.20388]
[1755867763377,0.72969944,112510.0,112500.0,0.1683]
[1755867763378,0.97969944,112510.0,112500.0,0.1683]
[1755867763579,0.97969944,112510.0,112500.0,0.20388]
[1755867767278,0.96935944,112510.0,112500.0,0.20388]
[1755867767478,0.06685165,112510.0,112500.0,0.85638779]
[1755867768184,0.06685165,112510.0,112500.0,0.20388]
[1755867768785,0.05031165,112510.0,112500.0,0.45388]
[1755867769283,0.05031165,112510.0,112500.0,1.10638779]
[1755867769976,0.05031165,112510.0,112500.0,0.45388]
[1755867778284,0.06677165,112510.0,112500.0,0.45388]
[1755867779283,0.71927944,112510.0,112500.0,0.45388]
[1755867780188,0.65250779,112510.0,112500.0,0.45388]
[1755867781175,0.0829245,112520.0,112500.0,0.45388]
[1755867781386,0.72514229,112520.0,112510.0,0.19448]
[1755867781582,0.84256,112520.0,112510.0,0.19448]
[1755867781782,1.49506779,112520.0,112510.0,0.19448]
[1755867782290,0.65250779,112520.0,112510.0,0.19448]
[1755867782786,0.90350779,112520.0,112510.0,0.19448]
[1755867783787,0.252,112520.0,112510.0,0.19448]
[1755867784092,0.2522,112520.0,112510.0,0.19448]
[1755867784686,0.0022,112520.0,112510.0,1.93954779]
[1755867784888,0.04509159,112530.0,112520.0,0.11098]
[1755867785092,0.06383322,112540.0,112520.0,0.84698779]
[1755867785391,0.06383322,112540.0,112530.0,0.19448]
[1755867785592,0.06383322,112550.0,112540.0,0.19448]
[1755867785897,0.10923544,112550.0,112540.0,0.19448]
[1755867787490,0.76174323,112550.0,112540.0,0.19448]
[1755867787992,0.76274323,112550.0,112540.0,0.19448]
[1755867788185,0.76294323,112550.0,112540.0,0.19448]
[1755867789186,0.69911001,112550.0,112540.0,0.19448]
[1755867790187,0.94911001,112550.0,112540.0,0.15919]
[1755867790495,1.04493803,112550.0,112540.0,0.0938]
[1755867790689,1.04493803,112550.0,112540.0,0.04963]
[1755867791394,1.04573803,112550.0,112540.0,0.04963]
[1755867791897,1.04573803,112550.0,112530.0,0.07374]
[1755867792100,1.74486779,112540.0,112530.0,0.04963]
[1755867792298,1.74506779,112540.0,112530.0,0.04963]
[1755867792496,1.00021659,112540.0,112530.0,0.04963]
[1755867792799,2.34257659,112540.0,112530.0,0.0938]
[1755867793098,2.34257659,112540.0,112530.0,0.0958]
[1755867793485,2.34257659,112540.0,112530.0,0.0938]
[1755867793695,2.34257659,112540.0,112530.0,0.0958]
[1755867793995,1.50021659,112540.0,112530.0,0.0958]
[1755867794193,2.34249659,112540.0,112530.0,0.0958]
[1755867794997,2.34249659,112540.0,112530.0,0.05163]
[1755867796197,2.34249659,112540.0,112530.0,0.04963]
[1755867796399,2.34249659,112540.0,112530.0,0.05063]
[1755867799397,2.34249659,112540.0,112530.0,0.07474]
[1755867800100,2.40632981,112540.0,112530.0,0.07474]
[1755867800502,2.34249659,112540.0,112530.0,0.07474]
[1755867802202,2.34249659,112540.0,112530.0,0.05063]
[1755867802903,2.40632981,112540.0,112530.0,0.001]
[1755867804001,2.34249659,112540.0,112530.0,0.001]
[1755867805199,2.42086687,112540.0,112530.0,0.001]
[1755867805807,2.34249659,112540.0,112530.0,0.001]
[1755867806007,2.4084071,112540.0,112510.0,0.09821]
[1755867806212,0.65250779,112520.0,112510.0,0.09821]
[1755867806399,1.56709505,112520.0,112510.0,0.09821]
[1755867806697,1.66485481,112520.0,112510.0,0.09821]
[1755867807100,1.66485481,112520.0,112510.0,0.09921]
[1755867807501,1.01234702,112520.0,112510.0,0.09921]
[1755867807701,1.66485481,112520.0,112510.0,0.09921]
[1755867807901,1.91485481,112520.0,112510.0,0.09921]
[1755867808305,2.41485481,112520.0,112510.0,0.09921]
[1755867808709,2.41485481,112520.0,112510.0,0.09821]
[1755867809009,2.41485481,112520.0,112510.0,0.09921]
[1755867809804,2.16485481,112520.0,112510.0,0.09921]
[1755867810006,2.16485481,112520.0,112510.0,0.07417]
[1755867810211,2.16485481,112520.0,112510.0,0.05362]
[1755867810406,2.8173626,112520.0,112510.0,0.05362]
[1755867811002,1.9752826,112520.0,112510.0,0.05362]
[1755867811202,2.8173226,112520.0,112510.0,0.05362]
[1755867812510,1.51226702,112520.0,112510.0,0.11618]
[1755867812710,2.16477481,112520.0,112510.0,0.13673]
[1755867812911,2.16477481,112520.0,112510.0,0.20129]
[1755867813417,1.32277481,112520.0,112510.0,0.20129]
[1755867813615,2.16473481,112520.0,112510.0,0.20129]
[1755867813818,0.67026702,112520.0,112510.0,0.20129]
[1755867814115,2.16473481,112520.0,112510.0,0.20209]
[1755867814312,1.51222702,112520.0,112510.0,0.45209]
[1755867814513,0.57250726,112520.0,112510.0,0.45209]
[1755867814704,1.41446726,112520.0,112510.0,0.45209]
[1755867815112,0.91446726,112520.0,112510.0,0.45209]
[1755867815615,1.56697505,112520.0,112510.0,0.45129]
[1755867815820,0.72501505,112520.0,112510.0,0.45129]
[1755867816023,1.56693505,112520.0,112510.0,0.45129]
[1755867816718,0.07250726,112520.0,112510.0,0.45129]
[1755867816922,0.72501505,112520.0,112510.0,0.45129]
[1755867817719,0.07250726,112520.0,112510.0,0.45129]
[1755867817923,0.91438726,112520.0,112510.0,1.10459779]
[1755867819422,0.91438726,112520.0,112510.0,1.10379779]
[1755867822228,0.91438726,112520.0,112510.0,0.45129]
[1755867822724,0.07250726,112520.0,112510.0,0.45129]
[1755867822926,0.0002,112520.0,112510.0,1.10379779]
[1755867827928,0.0002,112520.0,112510.0,1.19269979]
[1755867828124,0.0002,112520.0,112510.0,2.03429979]
[1755867828428,1.66543273,112550.0,112540.0,0.19645]
[1755867830030,1.60452222,112550.0,112540.0,0.19645]
[1755867830228,1.66839273,112550.0,112540.0,0.19645]
[1755867830421,0.76300222,112550.0,112540.0,0.19645]
[1755867830829,0.76300222,112550.0,112540.0,0.44645]
[1755867831033,0.76300222,112550.0,112540.0,1.09895779]
[1755867831927,0.76100222,112550.0,112540.0,1.09895779]
[1755867832128,0.76120222,112550.0,112540.0,0.44645]
[1755867832725,0.76420222,112550.0,112540.0,0.44645]
[1755867833933,0.04960222,112550.0,112540.0,0.44645]
[1755867834134,0.04960222,112550.0,112540.0,1.09895779]
[1755867834628,0.04660222,112550.0,112540.0,1.09895779]
[1755867834824,0.04760222,112550.0,112540.0,1.09895779]
[1755867835026,0.04760222,112550.0,112540.0,1.94019779]
[1755867835338,0.8632,112570.0,112560.0,0.19645]
[1755867835632,0.02196,112570.0,112560.0,0.19645]
[1755867836430,0.0666796,112570.0,112560.0,0.19645]
[1755867836630,0.86512,112570.0,112560.0,0.19645]
[1755867838137,0.91050893,112570.0,112560.0,0.19645]
[1755867838337,0.91070893,112570.0,112560.0,0.19645]
[1755867839133,0.06954893,112570.0,112560.0,0.19645]
[1755867839835,0.04758893,112570.0,112560.0,1.09895779]
[1755867841038,0.06109893,112570.0,112560.0,1.09895779]
[1755867841635,0.04758893,112570.0,112560.0,1.09895779]
[1755867842143,0.04958893,112570.0,112560.0,1.09895779]
[1755867842637,0.07154893,112570.0,112560.0,0.44645]
[1755867843545,0.72405672,112570.0,112560.0,0.44645]
[1755867844235,0.72405672,112570.0,112560.0,0.41068]
[1755867844435,0.97405672,112570.0,112560.0,0.16068]
[1755867844645,0.97405672,112570.0,112560.0,0.12919]
[1755867844841,0.97405672,112570.0,112560.0,0.19645]
[1755867845144,1.81473672,112570.0,112560.0,0.19645]
[1755867845544,1.16218893,112570.0,112560.0,0.19645]
[1755867845740,0.32154893,112570.0,112560.0,0.19645]
[1755867845946,0.32154893,112570.0,112560.0,0.84895779]
[1755867845947,0.91218893,112570.0,112560.0,0.84895779]
[1755867846445,0.07154893,112570.0,112560.0,0.84895779]
[1755867846640,0.06109893,112570.0,112560.0,0.44645]
[1755867846848,0.06854893,112570.0,112560.0,0.44645]
[1755867847439,0.06954893,112570.0,112560.0,0.44645]
[1755867848142,0.06954893,112570.0,112560.0,1.09895779]
[1755867848348,0.04758893,112570.0,112560.0,1.09895779]
[1755867848551,0.04758893,112570.0,112560.0,1.09975779]
[1755867848742,0.84897,112590.0,112570.0,0.11633]
[1755867848942,0.0818,112590.0,112580.0,0.19645]
[1755867849341,0.96711154,112590.0,112580.0,0.19645]
[1755867849747,0.12663154,112590.0,112580.0,0.19645]
[1755867849946,0.12763154,112590.0,112580.0,0.19645]
[1755867850445,0.12663154,112590.0,112580.0,0.19645]
[1755867850650,0.12863154,112590.0,112580.0,0.19645]
[1755867850850,0.19932339,112590.0,112580.0,0.19645]
[1755867851042,0.16259339,112590.0,112580.0,1.09895779]
[1755867851238,0.04683154,112590.0,112580.0,1.09895779]
[1755867851845,0.06994154,112590.0,112580.0,1.09895779]
[1755867852152,0.07214154,112590.0,112580.0,1.09895779]
[1755867852848,0.04903154,112590.0,112580.0,1.09895779]
[1755867853946,0.0042,112590.0,112580.0,1.09895779]
[1755867855754,0.0042,112590.0,112580.0,1.28669]
[1755867855957,0.0042,112590.0,112580.0,1.93919779]
[1755867856552,0.0042,112590.0,112580.0,1.09895779]
[1755867856854,0.04927,112590.0,112580.0,1.68903779]
[1755867857155,0.086,112590.0,112580.0,1.68903779]
[1755867857351,0.086,112590.0,112580.0,0.84895779]
[1755867857555,0.086,112590.0,112580.0,1.68903779]
[1755867857759,0.086,112590.0,112580.0,0.84895779]
[1755867857950,0.086,112590.0,112580.0,1.68899779]
[1755867858150,0.086,112590.0,112580.0,0.84895779]
[1755867858552,0.0042,112590.0,112580.0,0.84895779]
[1755867858752,0.0042,112590.0,112580.0,1.09895779]
[1755867859558,0.04406202,112600.0,112580.0,0.98306779]
[1755867859760,0.11480827,112610.0,112600.0,0.19204]
[1755867859761,0.15220827,112610.0,112600.0,0.19204]
[1755867863066,0.15520827,112610.0,112600.0,0.19204]
[1755867863255,0.20063208,112610.0,112600.0,0.19204]
[1755867863959,0.85313987,112610.0,112600.0,0.15832]
[1755867864356,0.85313987,112610.0,112600.0,0.19204]
[1755867864952,1.10313987,112610.0,112600.0,0.09348]
[1755867865157,1.10613987,112610.0,112600.0,0.04945]
[1755867865669,1.10613987,112610.0,112600.0,0.19204]
[1755867866465,1.94381987,112610.0,112600.0,0.19204]
[1755867867152,1.94381987,112610.0,112600.0,0.15832]
[1755867867459,1.94381987,112610.0,112600.0,0.19204]
[1755867867757,1.94173987,112610.0,112600.0,0.12734]
[1755867867957,1.28923208,112610.0,112600.0,0.04945]
[1755867868267,1.28923208,112610.0,112590.0,0.09348]
[1755867868268,0.08171,112600.0,112590.0,0.09348]
[1755867868568,0.73441779,112600.0,112590.0,0.09348]
[1755867869259,1.57393779,112600.0,112590.0,0.09348]
[1755867869565,1.57393779,112600.0,112590.0,0.09448]
[1755867870466,1.82393779,112600.0,112590.0,0.09448]
[1755867870968,0.08191,112600.0,112590.0,0.84554779]
[1755867871163,0.08191,112600.0,112590.0,0.19304]
[1755867873268,0.0002,112600.0,112590.0,1.09554779]
[1755867873963,0.02508,112600.0,112590.0,1.09554779]
[1755867874466,0.08191,112600.0,112590.0,0.44304]
[1755867874668,0.73441779,112600.0,112590.0,0.15932]
[1755867874866,0.73441779,112600.0,112590.0,0.19304]
[1755867875261,0.08191,112600.0,112590.0,0.19304]
[1755867875463,0.08191,112600.0,112590.0,0.84554779]
[1755867875464,0.02508,112600.0,112590.0,0.84554779]
[1755867875664,0.0002,112600.0,112590.0,1.09554779]
[1755867876064,0.0002,112600.0,112590.0,1.11620389]
[1755867876566,0.0002,112600.0,112590.0,1.95544389]
[1755867877069,0.0002,112600.0,112590.0,1.11540389]
[1755867877861,0.06199,112600.0,112590.0,0.4628961]
[1755867878171,0.08191,112600.0,112590.0,0.19304]
[1755867878570,0.045,112600.0,112590.0,0.19304]
[1755867878766,0.0002,112600.0,112590.0,0.84554779]
[1755867878961,0.0002,112600.0,112590.0,1.09554779]
[1755867879165,0.0002,112600.0,112590.0,0.44304]
[1755867879472,0.0002,112600.0,112590.0,1.09554779]
[1755867880266,0.02508,112600.0,112590.0,1.09554779]
[1755867880667,0.06199,112600.0,112590.0,1.09554779]
[1755867882773,0.02508,112600.0,112590.0,1.09554779]
[1755867883071,0.0002,112600.0,112590.0,1.09554779]
[1755867883466,0.0002,112600.0,112590.0,1.11521137]
[1755867883665,0.04522381,112610.0,112600.0,0.15818]
[1755867883864,0.06391051,112620.0,112610.0,0.19204]
[1755867884070,0.08623028,112630.0,112620.0,0.15818]
[1755867884071,0.14614051,112630.0,112620.0,0.15818]
[1755867884377,0.21800784,112630.0,112620.0,0.19204]
[1755867884675,0.10637123,112630.0,112620.0,0.19204]
[1755867885370,3.25365594,112640.0,112620.0,0.07789]
[1755867885673,3.35314089,112640.0,112630.0,0.19204]
[1755867885864,3.28923038,112640.0,112630.0,0.19204]
[1755867886374,3.54003038,112640.0,112630.0,0.04945]
[1755867887069,3.54303038,112640.0,112630.0,0.04945]
[1755867887374,2.95459066,112640.0,112630.0,0.04945]
[1755867887574,3.60709845,112640.0,112630.0,0.07303]
[1755867887773,2.76737845,112640.0,112630.0,0.1279]
[1755867887976,3.60613845,112640.0,112630.0,0.19267]
[1755867888274,3.65156237,112640.0,112630.0,0.19267]
[1755867888472,2.81580237,112640.0,112630.0,0.19267]
[1755867888669,1.04688813,112640.0,112630.0,0.19267]
[1755867888870,0.20816813,112640.0,112630.0,0.19267]
[1755867890171,0.13644006,112640.0,112630.0,0.84517779]
[1755867890573,0.05162392,112640.0,112630.0,1.11474057]
[1755867890979,0.06422392,112640.0,112630.0,0.46223278]
[1755867891279,0.07209392,112640.0,112630.0,0.46223278]
[1755867891982,0.07109392,112640.0,112630.0,0.46223278]
[1755867892280,0.06322392,112640.0,112630.0,0.46223278]
[1755867892773,0.07009392,112640.0,112630.0,0.21223278]
[1755867893980,0.04962392,112640.0,112630.0,0.86474057]
[1755867894285,0.04962392,112640.0,112630.0,0.46223278]
[1755867894497,0.04962392,112640.0,112630.0,1.11474057]
[1755867895292,0.07009392,112640.0,112630.0,1.11474057]
[1755867895598,0.06222392,112640.0,112630.0,1.11474057]
[1755867895994,0.07009392,112640.0,112630.0,1.11474057]
[1755867896498,0.07009392,112640.0,112630.0,0.46223278]
[1755867897185,0.07009392,112640.0,112630.0,1.11474057]
[1755867897393,0.07009392,112640.0,112630.0,0.46223278]
[1755867898499,0.06222392,112640.0,112630.0,0.46223278]
[1755867898800,0.04962392,112640.0,112630.0,0.46223278]
[1755867899095,0.04962392,112640.0,112630.0,1.11474057]
[1755867900094,0.07009392,112640.0,112630.0,0.21223278]
[1755867900299,0.97260171,112640.0,112630.0,0.21223278]
[1755867900694,1.81080171,112640.0,112630.0,0.21223278]
[1755867902797,1.81080171,112640.0,112630.0,0.19267]
[1755867903202,1.15829392,112640.0,112630.0,0.19267]
[1755867903502,1.81080171,112640.0,112630.0,0.19267]
[1755867903697,1.15829392,112640.0,112630.0,0.19267]
[1755867903895,1.91045249,112640.0,112630.0,0.15721]
[1755867904092,1.91045249,112640.0,112630.0,0.04945]
[1755867904296,1.91125249,112640.0,112630.0,0.04945]
[1755867904491,2.56376028,112640.0,112620.0,0.05166]
[1755867904799,0.96850779,112630.0,112620.0,0.02878239]
[1755867904997,0.96870779,112630.0,112620.0,0.02878239]
[1755867905304,1.06117223,112630.0,112590.0,0.67217137]
[1755867905504,0.04062,112610.0,112600.0,0.14322]
[1755867905707,0.04869,112610.0,112600.0,0.14322]
[1755867906003,0.29869,112610.0,112600.0,0.14322]
[1755867906604,0.29869,112610.0,112600.0,0.19488]
[1755867907001,0.29869,112610.0,112600.0,0.19688]
[1755867908095,0.29869,112610.0,112600.0,0.19788]
[1755867908901,1.0667874,112610.0,112600.0,0.16242]
[1755867909201,1.9048274,112610.0,112600.0,0.07824]
[1755867909502,1.9048274,112610.0,112600.0,0.05466]
[1755867910396,1.9048274,112610.0,112600.0,0.003]
[1755867910796,1.9048274,112610.0,112600.0,0.002]
[1755867911000,1.9048274,112610.0,112590.0,0.13861358]
[1755867911203,0.71850779,112600.0,112590.0,0.18160358]
[1755867911402,0.71870779,112600.0,112590.0,0.18160358]
[1755867912204,1.55670779,112600.0,112590.0,0.21454358]
[1755867912796,0.9042,112600.0,112590.0,0.21654358]
[1755867912995,1.55670779,112600.0,112590.0,0.21654358]
[1755867913197,1.55674779,112600.0,112590.0,0.21654358]
[1755867913707,1.55674779,112600.0,112590.0,0.21754358]
[1755867914097,0.0002,112600.0,112590.0,1.12085137]
[1755867914897,0.0002,112600.0,112590.0,1.12005137]
[1755867916101,0.0002,112600.0,112590.0,0.46754358]
[1755867916300,0.0002,112600.0,112590.0,1.12005137]
[1755867916500,0.04869,112600.0,112590.0,0.21754358]
[1755867917302,0.0128,112600.0,112590.0,0.21754358]
[1755867917505,0.0002,112600.0,112590.0,0.87005137]
[1755867917809,0.0002,112600.0,112590.0,1.12005137]
[1755867919611,0.0002,112600.0,112590.0,0.46754358]
[1755867919914,0.0002,112600.0,112590.0,1.12005137]
[1755867920814,1.70524,112630.0,112620.0,0.1907]
[1755867920815,3.18659779,112630.0,112620.0,0.1907]
[1755867921013,2.53409,112630.0,112620.0,0.1907]
[1755867921311,0.98190047,112630.0,112620.0,0.1907]
[1755867921712,0.14406047,112630.0,112620.0,0.84320779]
[1755867921904,0.04332,112630.0,112620.0,0.84320779]
[1755867922305,0.04332,112630.0,112620.0,0.1907]
[1755867923304,0.04532,112630.0,112620.0,0.1907]
[1755867923504,0.004,112630.0,112620.0,0.84320779]
[1755867924213,0.004,112630.0,112620.0,0.1907]
[1755867924404,0.0042,112630.0,112620.0,0.84320779]
[1755867924609,0.0032,112630.0,112620.0,0.84320779]
[1755867925308,0.0022,112630.0,112620.0,0.84320779]
[1755867927212,0.0022,112630.0,112620.0,0.1907]
[1755867928010,0.69707779,112630.0,112620.0,0.1907]
[1755867928223,0.04457,112630.0,112620.0,0.1907]
[1755867928409,0.69707779,112630.0,112620.0,0.1907]
[1755867929211,0.04457,112630.0,112620.0,0.1907]
[1755867929412,0.29457,112630.0,112620.0,0.1907]
[1755867929615,0.0022,112630.0,112620.0,0.1907]
[1755867929816,0.0022,112630.0,112620.0,0.84320779]
[1755867933719,0.0022,112630.0,112620.0,0.4407]
[1755867933911,0.0022,112630.0,112620.0,1.09320779]
[1755867934519,0.0022,112630.0,112620.0,0.4407]
[1755867934719,0.04542392,112640.0,112630.0,0.1907]
[1755867934915,1.63149068,112650.0,112640.0,0.11417]
[1755867935121,1.63149068,112650.0,112640.0,0.1907]
[1755867935322,1.72386828,112650.0,112640.0,0.1907]
[1755867935824,1.66000021,112650.0,112640.0,0.1907]
[1755867936023,1.72386828,112650.0,112640.0,0.1907]